bitfinex-derivatives/quotes_BTCF0:USTF0_20250127
["timestamp","ask_amount","ask_price","bid_price","bid_amount"]
[1737963555283,0.001,98591.0,98560.0,0.3608]
[1737963555484,0.00015214,98570.0,98560.0,0.3608]
[1737963556094,0.00015214,98570.0,98557.0,0.02004878]
[1737963556282,0.00015214,98570.0,98557.0,0.02204878]
[1737963556481,0.00015214,98570.0,98564.0,0.3608]
[1737963557191,0.00015214,98570.0,98557.0,0.02304878]
[1737963557192,0.36095214,98570.0,98557.0,0.02304878]
[1737963557600,0.36195214,98570.0,98557.0,0.02204878]
[1737963557997,0.56500614,98570.0,98557.0,0.02204878]
[1737963558202,0.001,98570.0,98569.0,0.3608]
[1737963558389,0.21328384,98608.0,98569.0,0.3608]
[1737963558709,0.382,98636.0,98569.0,0.3608]
[1737963558710,0.202882,98653.0,98617.0,0.202955]
[1737963558993,0.11861662,98644.0,98637.0,0.3608]
[1737963559489,0.11861662,98644.0,98626.0,0.3608]
[1737963559490,0.11861662,98644.0,98635.0,0.3608]
[1737963559800,0.00035,98633.0,98631.0,0.00015206]
[1737963560391,0.18472485,98640.0,98631.0,0.00015206]
[1737963560892,0.18472485,98640.0,98631.0,0.04070206]
[1737963561601,0.18972485,98640.0,98631.0,0.04070206]
[1737963561894,0.005,98640.0,98631.0,0.04070206]
[1737963562198,0.004,98640.0,98639.0,0.3608]
[1737963562402,0.005,98640.0,98639.0,0.3608]
[1737963563200,0.202836,98676.0,98642.0,0.202904]
[1737963563510,0.3608,98681.0,98657.0,0.202874]
[1737963563694,0.01184788,98688.0,98666.0,0.3608]
[1737963563895,0.32141062,98696.0,98666.0,0.7216]
[1737963563896,0.11861662,98696.0,98666.0,0.7216]
[1737963564095,0.11861662,98696.0,98678.0,0.3608]
[1737963564299,0.11861662,98696.0,98678.0,0.563631]
[1737963564723,0.11861662,98696.0,98692.0,0.3608]
[1737963565601,0.12561662,98696.0,98692.0,0.3608]
[1737963566294,0.12761662,98696.0,98692.0,0.3608]
[1737963567293,0.12361662,98696.0,98692.0,0.3618]
[1737963567793,0.17927299,98713.0,98697.0,0.202791]
[1737963568099,0.17927299,98713.0,98704.0,0.3608]
[1737963568998,0.18327299,98713.0,98704.0,0.3608]
[1737963569301,1.5,98712.0,98700.0,0.3608]
[1737963569695,1.5,98712.0,98700.0,0.3689]
[1737963569896,0.202763,98711.0,98704.0,0.001]
[1737963570698,1.50052001,98712.0,98704.0,0.001]
[1737963570900,0.00152072,98716.0,98709.0,0.3608]
[1737963571097,0.00152072,98716.0,98704.0,0.001]
[1737963571297,1.5,98715.0,98704.0,0.001]
[1737963571594,1.5,98715.0,98700.0,0.3689]
[1737963571994,0.00152072,98716.0,98700.0,0.38079553]
[1737963572400,0.00152072,98716.0,98704.0,0.001]
[1737963572605,0.00152072,98716.0,98708.0,0.3608]
[1737963572905,0.00152072,98716.0,98708.0,0.3689]
[1737963575595,0.20427372,98716.0,98708.0,0.3689]
[1737963576203,0.00152072,98716.0,98708.0,0.3689]
[1737963576599,0.00152072,98716.0,98710.0,0.3608]
[1737963578000,0.20427372,98716.0,98710.0,0.3608]
[1737963578299,0.00152072,98716.0,98710.0,0.3608]
[1737963578500,0.202756,98715.0,98710.0,0.3608]
[1737963578703,0.00152072,98716.0,98710.0,0.3608]
[1737963579407,0.00252072,98716.0,98710.0,0.3608]
[1737963580109,0.00152072,98716.0,98710.0,0.3608]
[1737963580792,0.19975216,98726.0,98710.0,0.3608]
[1737963581006,1.50056001,98738.0,98722.0,0.3608]
[1737963581193,0.01127501,98739.0,98722.0,0.3608]
[1737963581393,0.202698,98743.0,98730.0,0.3608]
[1737963582100,0.202684,98750.0,98742.0,0.3608]
[1737963582306,0.563484,98750.0,98730.0,0.3608]
[1737963582506,1.5,98757.0,98730.0,0.3608]
[1737963582900,0.002,98743.0,98730.0,0.3608]
[1737963583707,0.002,98743.0,98730.0,0.3721245]
[1737963583907,0.202701,98742.0,98730.0,0.3721245]
[1737963584506,0.002,98743.0,98730.0,0.3721245]
[1737963584507,0.002,98743.0,98741.0,0.3608]
[1737963584803,0.004,98757.0,98741.0,0.3608]
[1737963585112,0.004,98757.0,98730.0,0.3721245]
[1737963585113,0.202685,98749.0,98730.0,0.3721245]
[1737963585307,0.202701,98742.0,98730.0,0.3721245]
[1737963585699,0.002,98743.0,98730.0,0.3721245]
[1737963586195,0.20271,98737.0,98730.0,0.3721245]
[1737963586396,0.002,98742.0,98730.0,0.3721245]
[1737963586602,0.202722,98732.0,98730.0,0.3721245]
[1737963586802,0.202722,98732.0,98730.0,0.0113245]
[1737963587008,0.3608,98741.0,98721.0,0.00015198]
[1737963587209,0.202725,98730.0,98721.0,0.01152826]
[1737963587402,0.202729,98728.0,98721.0,0.00015198]
[1737963587598,0.202733,98726.0,98721.0,0.00015198]
[1737963587802,0.202737,98724.0,98721.0,0.00015198]
[1737963587998,0.202741,98722.0,98721.0,0.00015198]
[1737963588205,0.20265038,98722.0,98721.0,0.04066198]
[1737963589007,0.20265038,98722.0,98721.0,0.04166198]
[1737963589706,0.20265038,98722.0,98721.0,0.04066198]
[1737963589909,0.20265038,98722.0,98721.0,0.04166198]
[1737963590904,0.3608,98730.0,98721.0,0.04166198]
[1737963591107,0.202717,98734.0,98724.0,0.3608]
[1737963591301,0.202719,98733.0,98724.0,0.3608]
[1737963591502,0.33333766,98740.0,98721.0,0.04066198]
[1737963591700,0.202739,98723.0,98721.0,0.04066198]
[1737963592409,0.3608,98722.0,98721.0,0.04066198]
[1737963592708,0.202739,98723.0,98721.0,0.04066198]
[1737963592903,0.202739,98723.0,98721.0,0.04876198]
[1737963593103,0.001,98723.0,98721.0,0.04876198]
[1737963593713,0.001,98723.0,98722.0,0.3608]
[1737963594011,0.001,98723.0,98721.0,0.25150298]
[1737963594515,0.01132685,98738.0,98721.0,0.04876198]
[1737963594814,0.3608,98732.0,98721.0,0.04876198]
[1737963595008,0.202734,98726.0,98721.0,0.04876198]
[1737963595314,0.202719,98733.0,98724.0,0.3608]
[1737963596510,0.37244979,98742.0,98724.0,0.3608]
[1737963597103,0.202721,98732.0,98724.0,0.3608]
[1737963597300,0.37244979,98742.0,98724.0,0.3608]
[1737963597608,0.202726,98730.0,98724.0,0.3608]
[1737963597804,0.37244979,98742.0,98724.0,0.3608]
[1737963597805,0.33333766,98740.0,98724.0,0.3608]
[1737963598105,0.202738,98723.0,98722.0,0.18037582]
[1737963600913,0.00056001,98725.0,98722.0,0.18037582]
[1737963601120,0.4496102,98744.0,98722.0,0.18037582]
[1737963601121,0.202708,98738.0,98722.0,0.18037582]
[1737963601415,0.0888102,98744.0,98730.0,0.3608]
[1737963601619,0.18827431,98740.0,98730.0,0.3608]
[1737963601913,0.21380385,98750.0,98730.0,0.3608]
[1737963601914,0.0888102,98746.0,98730.0,0.3608]
[1737963602211,0.202709,98738.0,98730.0,0.3608]
[1737963602410,0.202709,98738.0,98730.0,0.40131]
[1737963602711,0.18827431,98740.0,98730.0,0.04051]
[1737963602712,0.202721,98732.0,98730.0,0.04051]
[1737963603106,0.202721,98732.0,98730.0,0.04861]
[1737963604115,0.202703,98741.0,98731.0,0.3608]
[1737963604310,0.003,98744.0,98731.0,0.3608]
[1737963604518,0.202707,98739.0,98731.0,0.3608]
[1737963605015,0.002,98738.0,98731.0,0.3608]
[1737963605208,0.004,98732.0,98731.0,0.3608]
[1737963605705,0.202722,98731.0,98730.0,0.04861]
[1737963606216,0.006,98739.0,98722.0,0.30062638]
[1737963606217,0.202738,98723.0,98722.0,0.30062638]
[1737963606916,0.202738,98723.0,98670.0,0.18827431]
[1737963606917,0.20279,98698.0,98675.0,0.36091538]
[1737963607115,0.20279,98698.0,98696.0,0.0081]
[1737963608115,0.00015191,98707.0,98697.0,0.00751986]
[1737963608311,0.00015191,98707.0,98706.0,0.3608]
[1737963608508,0.00152024,98718.0,98706.0,0.3608]
[1737963608715,0.202698,98743.0,98725.0,0.202732]
[1737963609020,0.202698,98743.0,98727.0,0.3608]
[1737963609311,0.202701,98742.0,98727.0,0.3608]
[1737963609704,0.20269,98747.0,98735.0,0.3608]
[1737963609906,0.3608,98749.0,98736.0,0.202712]
[1737963610108,0.3608,98749.0,98735.0,0.3608]
[1737963610316,0.33170874,98745.0,98727.0,0.3608]
[1737963610713,0.202718,98733.0,98727.0,0.3608]
[1737963611016,0.202718,98733.0,98725.0,0.00015198]
[1737963611017,0.202731,98727.0,98725.0,0.00015198]
[1737963611315,0.3608,98726.0,98725.0,0.00015198]
[1737963611516,0.0888102,98732.0,98725.0,0.00015198]
[1737963611709,0.0888102,98732.0,98729.0,0.3608]
[1737963612610,0.0908102,98732.0,98729.0,0.3608]
[1737963613624,0.0908102,98732.0,98730.0,0.202724]
[1737963614115,0.0908102,98732.0,98729.0,0.3608]
[1737963614116,0.1503563,98745.0,98729.0,0.3608]
[1737963614326,0.1503563,98745.0,98744.0,0.3608]
[1737963614509,0.07682036,98763.0,98744.0,0.3608]
[1737963614714,0.07682036,98763.0,98761.0,0.3608]
[1737963616019,0.23524742,98777.0,98761.0,0.3608]
[1737963616212,0.00151924,98799.0,98768.0,0.3608]
[1737963616410,0.00151924,98799.0,98796.0,0.3608]
[1737963616613,0.08757826,98800.0,98796.0,0.3608]
[1737963617419,0.08757826,98800.0,98784.0,0.3608]
[1737963617624,0.08757826,98800.0,98795.0,0.3608]
[1737963617820,0.08757826,98800.0,98796.0,0.001]
[1737963618126,0.202585,98798.0,98796.0,0.001]
[1737963618813,0.08757826,98800.0,98796.0,0.001]
[1737963619219,0.08957826,98800.0,98796.0,0.001]
[1737963619821,0.29215926,98800.0,98796.0,0.001]
[1737963620225,1.5,98799.0,98796.0,0.001]
[1737963620722,1.702584,98799.0,98795.0,0.3608]
[1737963620918,1.5,98799.0,98784.0,0.37214269]
[1737963621224,0.202594,98794.0,98784.0,0.37214269]
[1737963621429,0.3608,98795.0,98784.0,0.3608]
[1737963621721,0.33170874,98794.0,98774.0,0.00015189]
[1737963621925,0.3608,98785.0,98760.0,0.3608]
[1737963622217,0.202687,98748.0,98747.0,0.3608]
[1737963622419,0.202704,98740.0,98731.0,0.3608]
[1737963622719,0.202725,98730.0,98718.0,0.3216]
[1737963622925,0.202729,98728.0,98718.0,0.3216]
[1737963623223,0.3608,98732.0,98714.0,0.00015189]
[1737963623224,0.3608,98719.0,98714.0,0.00015189]
[1737963623422,0.202755,98715.0,98714.0,0.00015189]
[1737963623813,0.3608,98717.0,98714.0,0.00015189]
[1737963624020,0.3608,98717.0,98700.0,0.00151979]
[1737963624021,0.202767,98710.0,98700.0,0.00151979]
[1737963624222,0.6608,98717.0,98650.0,0.69250874]
[1737963624223,0.202796,98695.0,98650.0,0.3608]
[1737963624419,0.194733,98677.0,98651.0,0.00152056]
[1737963624615,0.916333,98677.0,98651.0,0.00152056]
[1737963624817,0.3608,98677.0,98651.0,0.00152056]
[1737963625014,0.3608,98677.0,98670.0,0.202846]
[1737963625215,0.00015197,98676.0,98670.0,0.202846]
[1737963625422,0.00015197,98676.0,98661.0,0.3608]
[1737963625423,0.00015197,98676.0,98662.0,0.202863]
[1737963625620,0.00015197,98676.0,98670.0,0.04863]
[1737963625815,0.00152084,98697.0,98675.0,0.3608]
[1737963626028,0.3608,98728.0,98708.0,0.202769]
[1737963626239,0.3608,98758.0,98728.0,0.202727]
[1737963626523,0.3608,98758.0,98719.0,0.3608]
[1737963626524,0.3608,98758.0,98736.0,0.202711]
[1737963626934,0.3608,98758.0,98738.0,0.202707]
[1737963627124,0.00015179,98757.0,98740.0,0.202703]
[1737963627323,0.3608,98745.0,98737.0,0.36095197]
[1737963627724,0.3608,98745.0,98737.0,0.00015197]
[1737963628131,0.3608,98745.0,98737.0,0.20286097]
[1737963628521,0.00015179,98757.0,98744.0,0.3608]
[1737963628725,0.00151982,98763.0,98756.0,0.202671]
[1737963629022,0.00151982,98763.0,98762.0,0.3608]
[1737963629229,0.00151982,98763.0,98752.0,0.3608]
[1737963629428,0.00151982,98763.0,98759.0,0.202663]
[1737963629624,0.00151982,98763.0,98752.0,0.3608]
[1737963629819,0.00151982,98763.0,98752.0,0.37202503]
[1737963630430,0.00151982,98763.0,98760.0,0.3608]
[1737963630730,0.3608,98786.0,98760.0,0.3608]
[1737963630929,0.00052001,98793.0,98777.0,0.3608]
[1737963631236,0.00052001,98793.0,98764.0,0.202653]
[1737963631237,0.202595,98793.0,98764.0,0.202653]
[1737963632428,0.3608,98794.0,98763.0,0.00015189]
[1737963632624,0.3608,98778.0,98764.0,0.001]
[1737963632828,0.3608,98787.0,98764.0,0.001]
[1737963634142,0.08757826,98800.0,98778.0,0.3608]
[1737963634330,0.004,98794.0,98786.0,0.3608]
[1737963634927,0.3608,98797.0,98780.0,0.00015189]
[1737963635127,0.004,98787.0,98783.0,0.3608]
[1737963635329,0.3548,98798.0,98780.0,0.00015189]
[1737963635534,0.3608,98788.0,98780.0,0.00015189]
[1737963636136,0.001,98794.0,98780.0,0.36095189]
[1737963636923,0.001,98794.0,98784.0,0.202612]
[1737963637438,0.001,98794.0,98791.0,0.3608]
[1737963637653,0.001,98794.0,98786.0,0.202608]
[1737963637832,0.08757826,98800.0,98793.0,0.3608]
[1737963638027,0.3608,98830.0,98799.0,0.3608]
[1737963638240,0.3608,98830.0,98809.0,0.3608]
[1737963638439,0.3608,98830.0,98811.0,0.202557]
[1737963638843,0.3608,98830.0,98814.0,0.202551]
[1737963639026,0.3608,98830.0,98810.0,0.00809]
[1737963639337,0.3608,98830.0,98818.0,0.202542]
[1737963639641,0.3608,98833.0,98817.0,0.3608]
[1737963639835,0.0114456,98836.0,98826.0,0.3608]
[1737963640036,0.3608,98844.0,98826.0,0.3608]
[1737963640245,0.202477,98851.0,98826.0,0.3608]
[1737963640726,0.202477,98851.0,98829.0,0.00015181]
[1737963641327,0.202482,98848.0,98829.0,0.00015181]
[1737963641527,0.3658,98830.0,98829.0,0.00015181]
[1737963641933,0.005,98830.0,98829.0,0.00115181]
[1737963642338,0.202501,98839.0,98829.0,0.00115181]
[1737963642534,0.3608,98830.0,98810.0,0.00809]
[1737963642736,0.3608,98811.0,98792.0,0.3608]
[1737963643335,0.563358,98811.0,98792.0,0.37212714]
[1737963643540,0.202563,98809.0,98792.0,0.37212714]
[1737963643840,0.3608,98803.0,98792.0,0.37227895]
[1737963644042,0.202593,98794.0,98792.0,0.36904181]
[1737963644240,0.3608,98793.0,98792.0,0.00824181]
[1737963644828,0.3608,98793.0,98792.0,0.00924181]
[1737963645343,0.20263,98777.0,98772.0,0.3608]
[1737963645546,0.3608,98783.0,98772.0,0.3608]
[1737963645739,0.3608,98783.0,98772.0,0.40129]
[1737963645934,0.3608,98783.0,98772.0,0.603928]
[1737963646246,0.001,98793.0,98782.0,0.3608]
[1737963646542,0.001,98793.0,98792.0,0.3608]
[1737963646738,0.1797,98829.0,98796.0,0.202589]
[1737963647045,0.00151881,98830.0,98815.0,0.3608]
[1737963647231,0.00151881,98830.0,98824.0,0.3608]
[1737963648237,0.00151881,98830.0,98817.0,0.00015181]
[1737963648438,0.00251881,98830.0,98824.0,0.001]
[1737963648633,0.202529,98825.0,98824.0,0.001]
[1737963648947,0.202544,98818.0,98817.0,0.00015181]
[1737963649537,0.00551881,98830.0,98818.0,0.202544]
[1737963649740,0.00551881,98830.0,98826.0,0.3608]
[1737963650047,0.00551881,98830.0,98826.0,0.202525]
[1737963650231,0.00551881,98830.0,98825.0,0.3608]
[1737963650434,0.003,98830.0,98825.0,0.3608]
[1737963650647,0.005,98830.0,98829.0,0.202521]
[1737963650937,0.005,98830.0,98825.0,0.37209865]
[1737963651136,0.005,98830.0,98825.0,0.3608]
[1737963651541,0.002,98830.0,98825.0,0.3608]
[1737963651940,0.002,98830.0,98825.0,0.563328]
[1737963652248,0.3608,98887.0,98829.0,0.3608]
[1737963652432,0.00060001,98869.0,98861.0,0.3608]
[1737963652740,0.33170874,98890.0,98861.0,0.3608]
[1737963652940,0.29250874,98890.0,98885.0,0.3608]
[1737963653144,0.29250874,98890.0,98870.0,0.3608]
[1737963653345,0.202425,98876.0,98870.0,0.3608]
[1737963653641,0.55152001,98894.0,98870.0,0.3608]
[1737963653642,0.00052001,98894.0,98873.0,0.3608]
[1737963653947,0.1,98900.0,98898.0,0.202378]
[1737963654150,0.1,98900.0,98893.0,0.7216]
[1737963654151,0.1,98900.0,98893.0,0.72296]
[1737963654340,0.1,98900.0,98893.0,0.7216]
[1737963655137,0.1,98900.0,98893.0,0.72968]
[1737963655942,0.202382,98897.0,98893.0,0.72968]
[1737963656133,0.101,98900.0,98893.0,0.72968]
[1737963656134,0.202387,98895.0,98893.0,0.72968]
[1737963656644,0.202387,98895.0,98893.0,0.00808]
[1737963656852,0.202387,98895.0,98840.0,0.33170874]
[1737963656853,0.3634,98894.0,98835.0,0.3608]
[1737963657143,0.3608,98852.0,98832.0,0.202513]
[1737963657350,0.3608,98867.0,98850.0,0.202477]
[1737963657534,0.3608,98865.0,98843.0,0.202492]
[1737963657940,9.073e-05,98864.0,98841.0,0.3608]
[1737963658141,0.00015145,98864.0,98844.0,0.00015173]
[1737963658349,0.202468,98855.0,98844.0,0.00015173]
[1737963658639,0.00010145,98854.0,98844.0,0.00015173]
[1737963658837,0.3608,98848.0,98844.0,0.00015173]
[1737963659140,8.898e-05,98847.0,98844.0,0.00015173]
[1737963659335,8.898e-05,98847.0,98844.0,0.00115173]
[1737963659336,0.202486,98846.0,98844.0,0.00115173]
[1737963659535,8.898e-05,98847.0,98844.0,0.00115173]
[1737963660043,8.898e-05,98847.0,98844.0,0.00215173]
[1737963660841,8.898e-05,98847.0,98844.0,0.00115173]
[1737963661038,0.00015145,98864.0,98844.0,0.30115173]
[1737963661239,0.00200012,98886.0,98871.0,0.202435]
[1737963661546,0.00200012,98886.0,98853.0,0.3608]
[1737963661745,0.00200012,98886.0,98855.0,0.3608]
[1737963661746,0.20392694,98884.0,98855.0,0.3608]
[1737963661947,0.00151794,98884.0,98855.0,0.3608]
[1737963662252,0.005,98864.0,98863.0,0.3608]
[1737963663344,0.00151794,98884.0,98863.0,0.6608]
[1737963663646,0.0126728,98931.0,98885.0,0.202406]
[1737963663647,0.3608,98911.0,98885.0,0.202406]
[1737963664042,0.20235,98913.0,98885.0,0.202406]
[1737963664240,0.202353,98912.0,98885.0,0.202406]
[1737963664448,0.3608,98914.0,98888.0,0.202398]
[1737963664641,0.3608,98914.0,98883.0,0.36095173]
[1737963664642,0.3608,98906.0,98883.0,0.00015173]
[1737963664842,0.3608,98893.0,98883.0,0.04060173]
[1737963665142,0.3608,98893.0,98885.0,0.001]
[1737963665643,0.56319,98893.0,98885.0,0.001]
[1737963665939,0.3608,98891.0,98883.0,0.04260173]
[1737963666139,0.3608,98884.0,98857.0,0.01123247]
[1737963666336,0.3608,98873.0,98857.0,0.01123247]
[1737963666550,0.3608,98873.0,98856.0,0.3608]
[1737963666750,0.3608,98873.0,98865.0,0.00960708]
[1737963667345,0.3608,98873.0,98865.0,0.05005708]
[1737963667543,0.202445,98866.0,98865.0,0.05005708]
[1737963668036,0.7216,98873.0,98865.0,0.05005708]
[1737963668241,0.202443,98867.0,98865.0,0.05005708]
[1737963668846,0.202443,98867.0,98865.0,0.05205708]
[1737963669044,0.7216,98873.0,98866.0,0.202445]
[1737963669240,0.00015173,98879.0,98870.0,0.202436]
[1737963669439,0.00015173,98879.0,98865.0,0.05205708]
[1737963669440,0.00015173,98879.0,98865.0,0.05005708]
[1737963669639,0.3608,98868.0,98865.0,0.05405708]
[1737963669942,0.202443,98867.0,98865.0,0.05405708]
[1737963670251,0.00015173,98879.0,98865.0,0.05405708]
[1737963670555,0.3608,98876.0,98865.0,0.05405708]
[1737963670745,0.563225,98876.0,98865.0,0.05405708]
[1737963670945,0.3608,98876.0,98865.0,0.05405708]
[1737963671143,0.202434,98872.0,98865.0,0.05205708]
[1737963671346,0.202434,98872.0,98865.0,0.05005708]
[1737963671640,0.3608,98876.0,98865.0,0.05005708]
[1737963671849,0.3608,98866.0,98865.0,0.04854]
[1737963672140,0.3608,98866.0,98859.0,0.00015173]
[1737963672344,0.202458,98860.0,98859.0,0.00015173]
[1737963673348,0.20249,98844.0,98811.0,0.18]
[1737963673548,0.3608,98824.0,98799.0,0.00011645]
[1737963673741,0.3608,98800.0,98799.0,0.00011645]
[1737963674154,0.20258,98801.0,98799.0,0.00011645]
[1737963674650,0.20258,98801.0,98797.0,0.04857]
[1737963674651,0.202585,98798.0,98797.0,0.05666]
[1737963674851,0.3608,98805.0,98797.0,0.05666]
[1737963675158,0.3608,98805.0,98798.0,0.30056417]
[1737963675348,0.3608,98805.0,98799.0,0.001]
[1737963676049,0.00015182,98810.0,98809.0,0.202562]
[1737963676549,0.00015182,98810.0,98799.0,0.5511]
[1737963676854,0.00015182,98810.0,98798.0,0.30056417]
[1737963677546,0.00015182,98810.0,98801.0,0.202578]
[1737963677747,0.00015182,98810.0,98798.0,0.30056417]
[1737963678252,0.003,98805.0,98798.0,0.30056417]
[1737963678550,0.3608,98802.0,98798.0,0.30056417]
[1737963679351,0.3608,98802.0,98798.0,0.30256417]
[1737963679548,0.3608,98802.0,98798.0,0.002]
[1737963679749,0.202578,98801.0,98798.0,0.003]
[1737963679951,0.3608,98802.0,98798.0,0.003]
[1737963679952,0.202583,98799.0,98798.0,0.003]
[1737963680448,0.202583,98799.0,98797.0,0.05666]
[1737963680657,0.202583,98799.0,98679.0,0.04433279]
[1737963680658,0.202645,98768.0,98742.0,0.3608]
[1737963680850,0.563445,98768.0,98744.0,0.3608]
[1737963681247,0.3608,98768.0,98744.0,0.3608]
[1737963681551,0.00151919,98788.0,98730.0,0.3318049]
[1737963681552,0.00151919,98788.0,98767.0,0.60163582]
[1737963681745,0.00015182,98777.0,98775.0,0.3608]
[1737963681940,0.00151919,98788.0,98775.0,0.3608]
[1737963682140,0.3608,98810.0,98787.0,0.3608]
[1737963682341,0.3608,98810.0,98797.0,0.3608]
[1737963682547,0.3608,98829.0,98809.0,0.3608]
[1737963682756,0.3608,98848.0,98828.0,0.3608]
[1737963682941,0.3608,98860.0,98837.0,0.3608]
[1737963683255,0.00015182,98846.0,98840.0,0.3608]
[1737963683652,0.00015182,98846.0,98843.0,0.202492]
[1737963683949,0.00015182,98846.0,98840.0,0.3608]
[1737963684353,0.00015182,98846.0,98831.0,0.1857]
[1737963684354,0.20263882,98846.0,98831.0,0.1857]
[1737963684651,0.00015182,98846.0,98829.0,0.3608]
[1737963684856,0.00015182,98846.0,98837.0,0.3608]
[1737963685154,0.00015182,98846.0,98829.0,0.3608]
[1737963685350,0.00015182,98846.0,98840.0,0.001]
[1737963685750,0.00515182,98846.0,98840.0,0.001]
[1737963686252,0.00215182,98846.0,98843.0,0.202492]
[1737963686450,0.00515182,98846.0,98837.0,0.3608]
[1737963686653,0.00515182,98846.0,98845.0,0.3608]
[1737963687147,0.00515182,98846.0,98827.0,0.5447]
[1737963687347,0.00515182,98846.0,98839.0,0.3608]
[1737963687551,0.17986062,98858.0,98839.0,0.3608]
[1737963687855,0.17986062,98858.0,98827.0,0.49519885]
[1737963687856,0.381588,98895.0,98865.0,0.202447]
[1737963688045,0.1792,98895.0,98866.0,0.3608]
[1737963688245,0.202402,98888.0,98866.0,0.3608]
[1737963688556,0.3608,98889.0,98866.0,0.3608]
[1737963688759,0.202403,98887.0,98857.0,0.3608]
[1737963689056,0.00015169,98880.0,98861.0,0.00015174]
[1737963689446,0.00751784,98875.0,98861.0,0.00015174]
[1737963689853,0.00751784,98875.0,98867.0,0.3608]
[1737963690165,0.00751784,98875.0,98867.0,0.7216]
[1737963690748,0.00751784,98875.0,98867.0,0.3608]
[1737963691148,0.00251784,98875.0,98867.0,0.3608]
[1737963691657,0.00151784,98875.0,98867.0,0.3608]
[1737963691859,2.621e-05,98875.0,98867.0,0.3608]
[1737963692552,0.001,98875.0,98867.0,0.37220825]
[1737963693756,0.00024711,98871.0,98867.0,0.37220825]
[1737963693952,0.00024711,98871.0,98870.0,0.202437]
[1737963694651,0.00024711,98871.0,98867.0,0.37220825]
[1737963694853,0.00124711,98871.0,98867.0,0.37220825]
[1737963695362,0.00271099,98871.0,98867.0,0.37220825]
[1737963695665,0.002,98871.0,98870.0,0.202437]
[1737963695955,0.00015169,98880.0,98872.0,0.202432]
[1737963696154,0.00015169,98880.0,98878.0,0.3608]
[1737963698163,0.00215169,98880.0,98878.0,0.3608]
[1737963698464,0.1,98900.0,98888.0,0.202399]
[1737963698660,0.1,98900.0,98893.0,0.3608]
[1737963699859,0.102,98900.0,98893.0,0.3608]
[1737963700060,0.08649389,98900.0,98893.0,0.3608]
[1737963700564,0.08649389,98900.0,98893.0,0.37176506]
[1737963700765,0.08649389,98900.0,98895.0,0.202384]
[1737963700967,0.08649389,98900.0,98893.0,0.37176506]
[1737963701165,0.08649389,98900.0,98893.0,0.37276506]
[1737963702366,0.00151727,98920.0,98897.0,0.20238]
[1737963702567,0.00151727,98920.0,98893.0,0.38892506]
[1737963702568,0.00151727,98920.0,98901.0,0.3608]
[1737963703155,0.3608,98912.0,98893.0,0.02712506]
[1737963703768,0.202346,98915.0,98893.0,0.02712506]
[1737963704174,0.00151727,98920.0,98904.0,0.3608]
[1737963704671,0.00451727,98920.0,98904.0,0.3608]
[1737963704868,0.33170874,98914.0,98901.0,0.001]
[1737963705176,0.33170874,98914.0,98893.0,0.01616]
[1737963705177,0.3608,98902.0,98893.0,0.01616]
[1737963705366,0.563188,98894.0,98893.0,0.01616]
[1737963706067,0.563188,98894.0,98893.0,0.01716]
[1737963706361,0.3777,98901.0,98893.0,0.01716]
[1737963706758,0.563186,98894.0,98893.0,0.01616]
[1737963707162,0.3777,98901.0,98893.0,0.01616]
[1737963707562,0.3608,98894.0,98893.0,0.01616]
[1737963708167,0.3608,98894.0,98887.0,0.00015174]
[1737963708168,0.6608,98894.0,98887.0,0.00015174]
[1737963708369,0.6608,98894.0,98874.0,0.01786858]
[1737963708370,0.202425,98875.0,98874.0,0.01786858]
[1737963708668,0.3608,98875.0,98844.0,0.3608]
[1737963708867,0.3608,98888.0,98840.0,0.3658]
[1737963708868,0.3608,98847.0,98843.0,0.01714515]
[1737963709065,0.3608,98858.0,98840.0,0.005]
[1737963709268,0.3608,98870.0,98856.0,0.3608]
[1737963709471,0.00151773,98878.0,98866.0,0.3608]
[1737963709780,0.00151773,98878.0,98875.0,0.3608]
[1737963709969,0.00151773,98878.0,98877.0,0.202421]
[1737963710167,0.00151773,98878.0,98875.0,0.3608]
[1737963710572,0.00251773,98878.0,98875.0,0.3608]
[1737963710874,0.00251773,98878.0,98875.0,0.563224]
[1737963711074,0.00251773,98878.0,98877.0,0.20242]
[1737963711274,0.00251773,98878.0,98875.0,0.3608]
[1737963711468,0.00251773,98878.0,98875.0,0.37826729]
[1737963711867,0.001,98878.0,98876.0,0.202422]
[1737963712269,0.001,98878.0,98875.0,0.38026729]
[1737963712270,0.00015175,98882.0,98881.0,0.202412]
[1737963712471,0.00015175,98882.0,98875.0,0.38326729]
[1737963712664,0.00015175,98882.0,98880.0,0.202413]
[1737963713464,0.00015175,98882.0,98881.0,0.002]
[1737963714380,0.00015175,98882.0,98880.0,0.204413]
[1737963715178,0.3608,98916.0,98895.0,0.202383]
[1737963715367,0.3608,98916.0,98897.0,0.3608]
[1737963716182,0.3608,98916.0,98897.0,0.36095167]
[1737963716480,0.3608,98916.0,98899.0,0.202373]
[1737963716977,0.3648,98916.0,98899.0,0.202373]
[1737963717173,0.3648,98916.0,98902.0,0.202368]
[1737963717875,0.36725918,98916.0,98902.0,0.202368]
[1737963718581,1.5,98915.0,98902.0,0.202368]
[1737963718776,1.5,98915.0,98902.0,0.21947717]
[1737963719373,1.5,98915.0,98908.0,0.3608]
[1737963719685,0.15058141,98941.0,98940.0,0.202284]
[1737963719884,0.04389984,98950.0,98949.0,0.202267]
[1737963720075,0.03530474,98950.0,98949.0,0.563067]
[1737963720276,0.20218,98992.0,98949.0,0.3608]
[1737963720478,0.202188,98989.0,98962.0,0.3608]
[1737963720673,0.202192,98987.0,98962.0,0.3608]
[1737963720877,0.175,98993.0,98962.0,0.3608]
[1737963721086,0.175,98993.0,98970.0,0.3608]
[1737963721280,0.3608,99002.0,98970.0,0.3608]
[1737963721480,0.3608,99002.0,98986.0,0.202188]
[1737963721680,0.175,99005.0,98991.0,0.3608]
[1737963721884,0.3728,99008.0,98992.0,0.202175]